Workbook

Sheet Лист1
I3: Nmax= | J3: 200
I4: N0= | J4: 10
D5: Nmax | I5: k= | J5: 0.2
D7: dN/dt=k*(Nmax-N) | I7: t | J7: N
I8: 0 | J8: =$J$3-($J$3-$J$4)*EXP(-$J$5*I8) -> 10
D9: dN/(Nmax-N)=k*dt | I9: 1 | J9: =$J$3-($J$3-$J$4)*EXP(-$J$5*I9) -> 44.44115692
I10: 2 | J10: 72.63919125
D11: -Ln(Nmax-N)=kt+C | I11: 3 | J11: 95.72578914
I12: 4 | J12: 114.6274968
D13: Ln(Nmax-N)=-kt+C | I13: 5 | J13: 130.1029062
I14: 6 | J14: 142.7730997
D15: t=0 | I15: 7 | J15: 153.1465769
D16: N=N0 | I16: 8 | J16: 161.6396616
I17: 9 | J17: 168.5932112
D18: C=Ln(Nmax-N0) | I18: 10 | J18: 174.2862962
I19: 11 | J19: 178.9473999
D20: Ln((Nmax-N)/(Nmax-N0)=-kt | I20: 12 | J20: 182.7635889
I21: 13 | J21: 185.8880201
D22: (Nmax-N)/(Nmax-N0)=Exp(-kt) | I22: 14 | J22: 188.4460881
I23: 15 | J23: 190.540457
D24: Nmax-N=(Nmax-N0)*Exp(-Kt) | I24: 16 | J24: 192.2551812
D26: N=Nmax-(Nmax-N0)*Exp(-kt)
C35: Nmax= | D35: 200
C36: N0= | D36: 10
C37: k= | D37: 0.2
C38: dt= | D38: 0.1
C40: t | D40: N | E40: dN
C41: 0 | D41: =D36 -> 10 | H41: 0.1 | I41: 13.8
C42: =C41+$D$38 -> 0.1 | D42: =D41+E42 -> 13.8 | E42: =($D$35-D41)*$D$37*$D$38 -> 3.8 | H42: 0.2 | I42: 17.524
C43: =C42+$D$38 -> 0.2 | D43: =D42+E43 -> 17.524 | E43: =($D$35-D42)*$D$37*$D$38 -> 3.724 | H43: 0.3 | I43: 21.17352
C44: 0.3 | D44: 21.17352 | E44: 3.64952 | H44: 0.4 | I44: 24.7500496
C45: 0.4 | D45: 24.7500496 | E45: 3.5765296 | H45: 0.5 | I45: 28.25504861
C46: 0.5 | D46: 28.25504861 | E46: 3.504999008 | H46: 0.6 | I46: 31.68994764
C47: 0.6 | D47: 31.68994764 | E47: 3.434899028 | H47: 0.7 | I47: 35.05614868
C48: 0.7 | D48: 35.05614868 | E48: 3.366201047 | H48: 0.8 | I48: 38.35502571
C49: 0.8 | D49: 38.35502571 | E49: 3.298877026 | H49: 0.9 | I49: 41.5879252
C50: 0.9 | D50: 41.5879252 | E50: 3.232899486 | H50: 1 | I50: 44.75616669
C51: 1 | D51: 44.75616669 | E51: 3.168241496 | H51: 1.1 | I51: 47.86104336
C52: 1.1 | D52: 47.86104336 | E52: 3.104876666 | H52: 1.2 | I52: 50.90382249
C53: 1.2 | D53: 50.90382249 | E53: 3.042779133 | H53: 1.3 | I53: 53.88574604
C54: 1.3 | D54: 53.88574604 | E54: 2.98192355 | H54: 1.4 | I54: 56.80803112
C55: 1.4 | D55: 56.80803112 | E55: 2.922285079 | H55: 1.5 | I55: 59.6718705
C56: 1.5 | D56: 59.6718705 | E56: 2.863839378 | H56: 1.6 | I56: 62.47843309
C57: 1.6 | D57: 62.47843309 | E57: 2.80656259 | H57: 1.7 | I57: 65.22886443
H58: 1.8 | I58: 67.92428714
H59: 1.9 | I59: 70.56580139
H60: 2 | I60: 73.15448537
H61: 2.1 | I61: 75.69139566
H62: 2.2 | I62: 78.17756775
H63: 2.3 | I63: 80.61401639
H64: 2.4 | I64: 83.00173606
H65: 2.5 | I65: 85.34170134
H66: 2.6 | I66: 87.63486732
H67: 2.7 | I67: 89.88216997
H68: 2.8 | I68: 92.08452657
H69: 2.9 | I69: 94.24283604
H70: 3 | I70: 96.35797932
H71: 3.1 | I71: 98.43081973
H72: 3.2 | I72: 100.4622033
H73: 3.3 | I73: 102.4529593
H74: 3.4 | I74: 104.4039001
H75: 3.5 | I75: 106.3158221
H76: 3.6 | I76: 108.1895056
H77: 3.7 | I77: 110.0257155
H78: 3.8 | I78: 111.8252012
H79: 3.9 | I79: 113.5886972
H80: 4 | I80: 115.3169232
H81: 4.1 | I81: 117.0105848
H82: 4.2 | I82: 118.6703731
H83: 4.3 | I83: 120.2969656
H84: 4.4 | I84: 121.8910263
H85: 4.5 | I85: 123.4532058
H86: 4.6 | I86: 124.9841417
H87: 4.7 | I87: 126.4844588
H88: 4.8 | I88: 127.9547697
H89: 4.9 | I89: 129.3956743
H90: 5 | I90: 130.8077608
H91: 5.1 | I91: 132.1916056
H92: 5.2 | I92: 133.5477735
H93: 5.3 | I93: 134.876818
H94: 5.4 | I94: 136.1792816
H95: 5.5 | I95: 137.455696
H96: 5.6 | I96: 138.7065821
H97: 5.7 | I97: 139.9324504
H98: 5.8 | I98: 141.1338014
H99: 5.9 | I99: 142.3111254
H100: 6 | I100: 143.4649029
H101: 6.1 | I101: 144.5956048
H102: 6.2 | I102: 145.7036927
H103: 6.3 | I103: 146.7896189
H104: 6.4 | I104: 147.8538265
H105: 6.5 | I105: 148.89675
H106: 6.6 | I106: 149.918815
H107: 6.7 | I107: 150.9204387
H108: 6.8 | I108: 151.9020299
H109: 6.9 | I109: 152.8639893
H110: 7 | I110: 153.8067095
H111: 7.1 | I111: 154.7305753
H112: 7.2 | I112: 155.6359638
H113: 7.3 | I113: 156.5232445
H114: 7.4 | I114: 157.3927797
H115: 7.5 | I115: 158.2449241
H116: 7.6 | I116: 159.0800256
H117: 7.7 | I117: 159.8984251
H118: 7.8 | I118: 160.7004566
H119: 7.9 | I119: 161.4864474
H120: 8 | I120: 162.2567185
H121: 8.1 | I121: 163.0115841
H122: 8.2 | I122: 163.7513524
H123: 8.3 | I123: 164.4763254
H124: 8.4 | I124: 165.1867989
H125: 8.5 | I125: 165.8830629
H126: 8.6 | I126: 166.5654016
H127: 8.7 | I127: 167.2340936
H128: 8.8 | I128: 167.8894117
H129: 8.9 | I129: 168.5316235
H130: 9 | I130: 169.160991
H131: 9.1 | I131: 169.7777712
H132: 9.2 | I132: 170.3822158
H133: 9.3 | I133: 170.9745715
H134: 9.4 | I134: 171.55508
H135: 9.5 | I135: 172.1239784
H136: 9.6 | I136: 172.6814989
H137: 9.7 | I137: 173.2278689
H138: 9.8 | I138: 173.7633115
H139: 9.9 | I139: 174.2880453
H140: 10 | I140: 174.8022844
H141: 10.1 | I141: 175.3062387
H142: 10.2 | I142: 175.8001139
H143: 10.3 | I143: 176.2841116
H144: 10.4 | I144: 176.7584294
H145: 10.5 | I145: 177.2232608
H146: 10.6 | I146: 177.6787956
H147: 10.7 | I147: 178.1252197
H148: 10.8 | I148: 178.5627153
H149: 10.9 | I149: 178.991461
H150: 11 | I150: 179.4116318
H151: 11.1 | I151: 179.8233991
H152: 11.2 | I152: 180.2269312
H153: 11.3 | I153: 180.6223925
H154: 11.4 | I154: 181.0099447
H155: 11.5 | I155: 181.3897458
H156: 11.6 | I156: 181.7619509
H157: 11.7 | I157: 182.1267119
H158: 11.8 | I158: 182.4841776
H159: 11.9 | I159: 182.8344941
H160: 12 | I160: 183.1778042
H161: 12.1 | I161: 183.5142481
H162: 12.2 | I162: 183.8439631
H163: 12.3 | I163: 184.1670839
H164: 12.4 | I164: 184.4837422
H165: 12.5 | I165: 184.7940674
H166: 12.6 | I166: 185.098186
H167: 12.7 | I167: 185.3962223
H168: 12.8 | I168: 185.6882978
H169: 12.9 | I169: 185.9745319
H170: 13 | I170: 186.2550412
H171: 13.1 | I171: 186.5299404
H172: 13.2 | I172: 186.7993416
H173: 13.3 | I173: 187.0633548
H174: 13.4 | I174: 187.3220877
H175: 13.5 | I175: 187.5756459
H176: 13.6 | I176: 187.824133
H177: 13.7 | I177: 188.0676504
H178: 13.8 | I178: 188.3062973
H179: 13.9 | I179: 188.5401714
H180: 14 | I180: 188.769368
H181: 14.1 | I181: 188.9939806
H182: 14.2 | I182: 189.214101
H183: 14.3 | I183: 189.429819
H184: 14.4 | I184: 189.6412226
H185: 14.5 | I185: 189.8483981
H186: 14.6 | I186: 190.0514302
H187: 14.7 | I187: 190.2504016
H188: 14.8 | I188: 190.4453935
H189: 14.9 | I189: 190.6364857
H190: 15 | I190: 190.823756
H191: 15.1 | I191: 191.0072808
H192: 15.2 | I192: 191.1871352
H193: 15.3 | I193: 191.3633925
H194: 15.4 | I194: 191.5361247
H195: 15.5 | I195: 191.7054022
H196: 15.6 | I196: 191.8712941
H197: 15.7 | I197: 192.0338683
H198: 15.8 | I198: 192.1931909
H199: 15.9 | I199: 192.3493271
H200: 16 | I200: 192.5023405
H201: 16.1 | I201: 192.6522937
H202: 16.2 | I202: 192.7992478
H203: 16.3 | I203: 192.9432629
H204: 16.4 | I204: 193.0843976
H205: 16.5 | I205: 193.2227097
H206: 16.6 | I206: 193.3582555
H207: 16.7 | I207: 193.4910904
H208: 16.8 | I208: 193.6212686
H209: 16.9 | I209: 193.7488432
H210: 17 | I210: 193.8738663
H211: 17.1 | I211: 193.996389
H212: 17.2 | I212: 194.1164612
H213: 17.3 | I213: 194.234132
... 27 more rows

Sheet Лист2
C7: N10= | D7: 10
C8: N20= | D8: 5
C9: k1= | D9: 2
C10: k2= | D10: 0.2
C11: k3= | D11: 0.2
C12: k4= | D12: 2
C13: dt= | D13: 0.01
B16: t | C16: n1 | D16: n2 | E16: dn1 | F16: dn2
B17: 0 | C17: =D7 -> 10 | D17: =D8 -> 5
B18: =B17+$D$13 -> 0.01 | C18: =C17+E18 -> 10.1 | D18: =D17+F18 -> 5 | E18: =($D$9*C17-$D$10*C17*D17)*$D$13 -> 0.1 | F18: =($D$11*C17*D17-$D$12*D17)*$D$13 -> 0
B19: =B18+$D$13 -> 0.02 | C19: =C18+E19 -> 10.201 | D19: =D18+F19 -> 5.001 | E19: =($D$9*C18-$D$10*C18*D18)*$D$13 -> 0.101 | F19: =($D$11*C18*D18-$D$12*D18)*$D$13 -> 0.001
B20: 0.03 | C20: 10.3029896 | D20: 5.003010402 | E20: 0.101989598 | F20: 0.002010402
B21: 0.04 | C21: 10.40595746 | D21: 5.006042122 | E21: 0.1029678637 | F21: 0.003031720221
B22: 0.05 | C22: 10.50989129 | D22: 5.010106603 | E22: 0.1039338265 | F22: 0.004064480306
B23: 0.06 | C23: 10.61477776 | D23: 5.015215822 | E23: 0.1048864743 | F23: 0.005109219419
B24: 0.07 | C24: 10.72060251 | D24: 5.021382308 | E24: 0.1058247525 | F24: 0.006166486323
B25: 0.08 | C25: 10.82735008 | D25: 5.02861915 | E25: 0.1067475627 | F25: 0.00723684144
B26: 0.09 | C26: 10.93500384 | D26: 5.036940007 | E26: 0.1076537617 | F26: 0.008320856888
B27: 0.1 | C27: 11.043546 | D27: 5.046359123 | E27: 0.1085421602 | F27: 0.009419116489
B28: 0.11 | C28: 11.15295752 | D28: 5.056891339 | E28: 0.1094115218 | F28: 0.01053221575
B29: 0.12 | C29: =C28+E29 -> 11.26321808 | D29: =D28+F29 -> 5.068552101 | E29: =($D$9*C28-$D$10*C28*D28)*$D$13 -> 0.1102605618 | F29: =($D$11*C28*D28-$D$12*D28)*$D$13 -> 0.01166076181
B30: 0.13 | C30: 11.37430603 | D30: 5.081357474 | E30: 0.1110879463 | F30: 0.01280537334
B31: 0.14 | C31: 11.48619832 | D31: 5.095324154 | E31: 0.1118922907 | F31: 0.01396668043
B32: 0.15 | C32: 11.59887048 | D32: 5.110469479 | E32: 0.1126721589 | F32: 0.0151453244
B33: 0.16 | C33: 11.71229654 | D33: 5.126811436 | E33: 0.1134260624 | F33: 0.01634195757
B34: 0.17 | C34: 11.826449 | D34: 5.144368679 | E34: 0.1141524591 | F34: 0.01755724298
B35: 0.18 | C35: 11.94129875 | D35: 5.163160533 | E35: 0.1148497524 | F35: 0.01879185407
B36: 0.19 | C36: 12.05681504 | D36: 5.183207008 | E36: 0.1155162902 | F36: 0.02004647421
B37: 0.2 | C37: 12.17296541 | D37: 5.204528804 | E37: 0.1161503644 | F37: 0.02132179629
B38: 0.21 | C38: 12.28971562 | D38: 5.227147326 | E38: 0.11675021 | F38: 0.02261852211
B39: 0.22 | C39: 12.40702962 | D39: 5.251084688 | E39: 0.1173140041 | F39: 0.02393736173
B40: =B39+$D$13 -> 0.23 | C40: =C39+E40 -> 12.52486949 | D40: =D39+F40 -> 5.276363721 | E40: =($D$9*C39-$D$10*C39*D39)*$D$13 -> 0.1178398659 | F40: =($D$11*C39*D39-$D$12*D39)*$D$13 -> 0.02527903278
B41: 0.24 | C41: 12.64319534 | D41: 5.30300798 | E41: 0.1183258558 | F41: 0.02664425953
B42: 0.25 | C42: 12.76196532 | D42: 5.331041752 | E42: 0.1187699753 | F42: 0.028033772
B43: 0.26 | C43: 12.88113549 | D43: 5.360490057 | E43: 0.1191701665 | F43: 0.02944830486
B44: 0.27 | C44: 13.0006598 | D44: 5.391378653 | E44: 0.1195243123 | F44: 0.03088859624
B45: 0.28 | C45: 13.12049003 | D45: 5.42373404 | E45: 0.1198302365 | F45: 0.03235538635
B46: 0.29 | C46: 13.24057574 | D46: 5.457583456 | E46: 0.1200857039 | F46: 0.03384941603
B47: 0.3 | C47: 13.36086416 | D47: 5.492954881 | E47: 0.1202884206 | F47: 0.03537142507
B48: 0.31 | C48: 13.48130019 | D48: 5.529877031 | E48: 0.1204360352 | F48: 0.03692215036
B49: 0.32 | C49: 13.60182633 | D49: 5.568379355 | E49: 0.1205261393 | F49: 0.03850232396
B50: =B49+$D$13 -> 0.33 | C50: =C49+E50 -> 13.7223826 | D50: =D49+F50 -> 5.608492026 | E50: =($D$9*C49-$D$10*C49*D49)*$D$13 -> 0.1205562688 | F50: =($D$11*C49*D49-$D$12*D49)*$D$13 -> 0.04011267078
B51: 0.34 | C51: 13.84290651 | D51: 5.650245932 | E51: 0.1205239052 | F51: 0.04175390628
B52: 0.35 | C52: 13.96333298 | D52: 5.693672666 | E52: 0.1204264778 | F52: 0.04342673371
B53: 0.36 | C53: 14.08359435 | D53: 5.738804507 | E53: 0.120261365 | F53: 0.04513184136
B54: 0.37 | C54: 14.20362025 | D54: 5.785674406 | E54: 0.1200258975 | F54: 0.04686989932
B55: 0.38 | C55: 14.32333761 | D55: 5.834315963 | E55: 0.1197173607 | F55: 0.04864155616
B56: 0.39 | C56: 14.44267061 | D56: 5.884763398 | E56: 0.1193329977 | F56: 0.05044743523
B57: 0.4 | C57: 14.56154062 | D57: 5.937051529 | E57: 0.1188700134 | F57: 0.05228813074
B58: 0.41 | C58: 14.6798662 | D58: 5.991215732 | E58: 0.1183255784 | F58: 0.05416420341
B59: 0.42 | C59: 14.79756303 | D59: 6.047291908 | E59: 0.1176968333 | F59: 0.05607617597
B60: 0.43 | C60: 14.91454392 | D60: 6.105316436 | E60: 0.1169808943 | F60: 0.05802452819
B61: 0.44 | C61: 15.03071878 | D61: 6.165326128 | E61: 0.1161748582 | F61: 0.0600096916
B62: 0.45 | C62: 15.14599459 | D62: 6.227358172 | E62: 0.1152758092 | F62: 0.06203204391
B63: 0.46 | C63: 15.26027542 | D63: 6.291450075 | E63: 0.1142808255 | F63: 0.06409190295
B64: 0.47 | C64: 15.3734624 | D64: 6.357639595 | E64: 0.1131869865 | F64: 0.06618952034
B65: 0.48 | C65: 15.48545379 | D65: 6.42596467 | E65: 0.1119913815 | F65: 0.06832507469
B66: 0.49 | C66: 15.5961449 | D66: 6.496463334 | E66: 0.1106911179 | F66: 0.07049866445
B67: 0.5 | C67: 15.70542823 | D67: 6.569173634 | E67: 0.109283331 | F67: 0.07271030036
B68: 0.51 | C68: 15.81319343 | D68: 6.644133532 | E68: 0.1077651945 | F68: 0.07495989746
B69: 0.52 | C69: 15.91932736 | D69: 6.721380799 | E69: 0.1061339312 | F69: 0.07724726678
B70: 0.53 | C70: 16.02371419 | D70: 6.800952905 | E70: 0.1043868247 | F70: 0.07957210652
B71: 0.54 | C71: 16.12623542 | D71: 6.882886898 | E71: 0.1025212326 | F71: 0.08193399297
B72: 0.55 | C72: =C71+E72 -> 16.22677002 | D72: =D71+F72 -> 6.967219269 | E72: =($D$9*C71-$D$10*C71*D71)*$D$13 -> 0.1005345994 | F72: =($D$11*C71*D71-$D$12*D71)*$D$13 -> 0.08433237098
B73: 0.56 | C73: 16.32519449 | D73: 7.053985813 | E73: 0.09842447087 | F73: 0.0867665441
B74: 0.57 | C74: 16.421383 | D74: 7.143221478 | E74: 0.09618850913 | F74: 0.08923566437
B75: 0.58 | C75: 16.51520751 | D75: 7.234960199 | E75: 0.09382450851 | F75: 0.09173872188
B76: 0.59 | C76: 16.60653792 | D76: 7.329234733 | E76: 0.09133041214 | F76: 0.09427453399
B77: 0.6 | C77: 16.69524225 | D77: 7.426076468 | E77: 0.08870432934 | F77: 0.09684173435
B78: 0.61 | C78: 16.7811868 | D78: 7.52551523 | E78: 0.08594455379 | F78: 0.0994387618
B79: 0.62 | C79: 16.86423638 | D79: 7.627579079 | E79: 0.08304958234 | F79: 0.1020638491
B80: 0.63 | C80: 16.94425452 | D80: 7.73229409 | E80: 0.08001813444 | F80: 0.1047150117
B81: 0.64 | C81: 17.02110369 | D81: 7.839684127 | E81: 0.07684917221 | F81: 0.1073900363
B82: 0.65 | C82: 17.09464561 | D82: 7.949770597 | E82: 0.07354192097 | F82: 0.1100864703
B83: 0.66 | C83: 17.1647415 | D83: 8.062572207 | E83: 0.07009589013 | F83: 0.1128016101
B84: 0.67 | C84: 17.2312524 | D84: 8.178104698 | E84: 0.06651089448 | F84: 0.1155324914
B85: 0.68 | C85: 17.29403947 | D85: 8.296380577 | E85: 0.06278707556 | F85: 0.1182758784
B86: 0.69 | C86: 17.35296439 | D86: 8.417408832 | E86: 0.05892492309 | F86: 0.1210282548
B87: 0.7 | C87: 17.40788969 | D87: 8.541194647 | E87: 0.05492529639 | F87: 0.1237858149
B88: 0.71 | C88: 17.45867914 | D88: 8.667739102 | E88: 0.05078944535 | F88: 0.1265444555
B89: 0.72 | C89: 17.50519817 | D89: 8.797038872 | E89: 0.04651903108 | F89: 0.1292997696
B90: 0.73 | C90: 17.54731431 | D90: 8.929085912 | E90: 0.04211614588 | F90: 0.13204704
B91: 0.74 | C91: 17.58489765 | D91: 9.063867147 | E91: 0.03758333222 | F91: 0.1347812358
B92: 0.75 | C92: 17.61782125 | D92: 9.201364157 | E92: 0.03292360079 | F92: 0.1374970092
B93: 0.76 | C93: 17.64596169 | D93: 9.341552851 | E93: 0.02814044706 | F93: 0.1401886947
B94: 0.77 | C94: 17.66919956 | D94: 9.484403162 | E94: 0.02323786632 | F94: 0.1428503105
B95: 0.78 | C95: 17.68741993 | D95: 9.629878723 | E95: 0.01822036685 | F95: 0.1454755611
B96: 0.79 | C96: 17.70051291 | D96: 9.777936566 | E96: 0.0130929809 | F96: 0.1480578432
B97: 0.8 | C97: 17.70837418 | D97: 9.92852682 | E97: 0.007861273354 | F97: 0.1505902535
B98: 0.81 | C98: 17.71090553 | D98: 10.08159242 | E98: 0.002531347644 | F98: 0.1530655996
B99: 0.82 | C99: 17.70801538 | D99: 10.23706883 | E99: -0.002890151256 | F99: 0.1554764134
B100: 0.83 | C100: 17.69961934 | D100: 10.3948838 | E100: -0.008396037066 | F100: 0.1578149679
B101: 0.84 | C101: 17.68564075 | D101: 10.5549571 | E101: -0.01397858591 | F101: 0.1600732967
B102: 0.85 | C102: 17.66601121 | D102: 10.71720031 | E102: -0.01962954371 | F102: 0.1622432168
B103: 0.86 | C103: 17.64067107 | D103: 10.88151667 | E103: -0.02534013758 | F103: 0.1643163555
B104: 0.87 | C104: 17.60956998 | D104: 11.04780085 | E104: -0.03110109123 | F104: 0.1662841793
B105: 0.88 | C105: 17.57266734 | D105: 11.21593888 | E105: -0.03690264475 | F105: 0.1681380274
B106: 0.89 | C106: 17.52993276 | D106: 11.38580802 | E106: -0.04273457875 | F106: 0.169869148
B107: 0.9 | C107: 17.48134651 | D107: 11.55727676 | E107: -0.04858624296 | F107: 0.1714687376
B108: 0.91 | C108: 17.42689993 | D108: 11.73020475 | E108: -0.05444658939 | F108: 0.1729279844
B109: 0.92 | C109: 17.36659572 | D109: 11.90444286 | E109: -0.06030420993 | F109: 0.1742381135
B110: 0.93 | C110: 17.30044834 | D110: 12.0798333 | E110: -0.06614737842 | F110: 0.1753904355
B111: 0.94 | C111: 17.22848424 | D111: 12.25620969 | E111: -0.07196409695 | F111: 0.1763763978
B112: 0.95 | C112: 17.15074209 | D112: 12.43339733 | E112: -0.07774214628 | F112: 0.1771876372
B113: 0.96 | C113: 17.06727295 | D113: 12.61121337 | E113: -0.08346914005 | F113: 0.1778160353
B114: =B113+$D$13 -> 0.97 | C114: 16.97814037 | D114: 12.78946714 | E114: -0.0891325825 | F114: 0.1782537743
B115: 0.98 | C115: 16.88342044 | D115: 12.96796053 | E115: -0.09471992933 | F115: 0.178493394
B116: 0.99 | C116: 16.78320179 | D116: 13.14648838 | E116: -0.1002186511 | F116: 0.1785278493
B117: 1 | C117: 16.67758549 | D117: 13.32483895 | E117: -0.1056162989 | F117: 0.1783505671
B118: 1.01 | C118: 16.56668492 | D118: 13.50279445 | E118: -0.1109005717 | F118: 0.1779555025
B119: 1.02 | C119: 16.45062554 | D119: 13.68013165 | E119: -0.1160593841 | F119: 0.1773371934
B120: 1.03 | C120: 16.3295446 | D120: 13.85662246 | E120: -0.1210809353 | F120: 0.1764908131
B121: 1.04 | C121: 16.20359082 | D121: 14.03203468 | E121: -0.1259537769 | F121: 0.1754122197
B122: 1.05 | C122: 16.07292394 | D122: 14.20613268 | E122: -0.1306668803 | F122: 0.1740980032
B123: 1.06 | C123: 15.93771424 | D123: 14.37867821 | E123: -0.1352097014 | F123: 0.1725455266
B124: 1.07 | C124: 15.798142 | D124: 14.54943117 | E124: -0.1395722441 | F124: 0.1707529648
B125: 1.08 | C125: 15.65439688 | D125: 14.71815051 | E125: -0.1437451194 | F125: 0.1687193359
B126: 1.09 | C126: 15.50667728 | D126: 14.88459504 | E126: -0.1477196012 | F126: 0.1664445286
B127: 1.1 | C127: 15.3551896 | D127: 15.04852436 | E127: -0.1514876778 | F127: 0.1639293226
B128: 1.11 | C128: 15.2001475 | D128: 15.20969976 | E128: -0.1550420975 | F128: 0.1611754023
B129: 1.12 | C129: 15.04177109 | D129: 15.36788513 | E129: -0.1583764097 | F129: 0.1581853645
B130: 1.13 | C130: 14.88028609 | D130: 15.52284785 | E130: -0.1614849987 | F130: 0.154962718
B131: 1.14 | C131: 14.71592298 | D131: 15.67435972 | E131: -0.164363112 | F131: 0.151511877
B132: 1.15 | C132: 14.5489161 | D132: 15.82219787 | E132: -0.1670068813 | F132: 0.1478381465
B133: 1.16 | C133: 14.37950276 | D133: 15.96614557 | E133: -0.1694133366 | F133: 0.1439477013
B134: 1.17 | C134: 14.20792235 | D134: 16.10599313 | E134: -0.1715804134 | F134: 0.1398475573
B135: 1.18 | C135: 14.0344154 | D135: 16.24153866 | E135: -0.1735069525 | F135: 0.1355455369
B136: 1.19 | C136: =C135+E136 -> 13.85922271 | D136: =D135+F136 -> 16.37258889 | E136: =($D$9*C135-$D$10*C135*D135)*$D$13 -> -0.1751926927 | F136: =($D$11*C135*D135-$D$12*D135)*$D$13 -> 0.1310502274
B137: 1.2 | C137: 13.68258445 | D137: 16.49895983 | E137: -0.1766382573 | F137: 0.1263709336
B138: 1.21 | C138: 13.50473931 | D138: 16.62047745 | E138: -0.1778451333 | F138: 0.1215176257
B139: 1.22 | C139: 13.32592367 | D139: 16.73697833 | E139: -0.1788156442 | F139: 0.1165008815
B140: 1.23 | C140: 13.14637075 | D140: 16.84831016 | E140: -0.1795529181 | F140: 0.1113318248
B141: 1.24 | C141: 12.9663099 | D141: 16.95433222 | E141: -0.1800608487 | F141: 0.1060220606
B142: 1.25 | C142: 12.78596585 | D142: 17.05491583 | E142: -0.1803440534 | F142: 0.1005836071
B143: 1.26 | C143: 12.60555802 | D143: 17.14994465 | E143: -0.1804078256 | F143: 0.09502882614
B144: 1.27 | C144: 12.42529994 | D144: 17.239315 | E144: -0.1802580844 | F144: 0.08937035182
B145: 1.28 | C145: 12.24539862 | D145: 17.32293602 | E145: -0.1799013206 | F145: 0.0836210193
B146: 1.29 | C146: 12.06605408 | D146: 17.40072982 | E146: -0.1793445413 | F146: 0.07779379328
B147: 1.3 | C147: 11.88745887 | D147: 17.47263151 | E147: -0.1785952124 | F147: 0.07190169761
B148: 1.31 | C148: 11.70979767 | D148: 17.53858926 | E148: -0.1776611995 | F148: 0.06595774653
B149: 1.32 | C149: 11.53324696 | D149: 17.59856414 | E149: -0.1765507098 | F149: 0.05997487799
B150: 1.33 | C150: 11.35797472 | D150: 17.65253003 | E150: -0.1752722334 | F150: 0.05396588982
B151: 1.34 | C151: 11.18414024 | D151: 17.70047341 | E151: -0.1738344852 | F151: 0.04794337917
B152: 1.35 | C152: 11.01189389 | D152: 17.74239309 | E152: -0.172246349 | F152: 0.0419196856
B153: 1.36 | C153: 10.84137707 | D153: 17.77829993 | E153: -0.1705168224 | F153: 0.0359068383
B154: 1.37 | C154: 10.6727221 | D154: 17.80821644 | E154: -0.168654965 | F154: 0.0299165077
B155: 1.38 | C155: 10.50605225 | D155: 17.8321764 | E155: -0.1666698483 | F155: 0.02395996159
B156: 1.39 | C156: 10.34148174 | D156: 17.85022443 | E156: -0.164570509 | F156: 0.01804802611
B157: 1.4 | C157: 10.17911584 | D157: 17.86241548 | E157: -0.1623659052 | F157: 0.01219105156
B158: 1.41 | C158: 10.01905096 | D158: 17.86881436 | E158: -0.1600648758 | F158: 0.006398883086
B159: 1.42 | C159: 9.861374859 | D159: 17.8694952 | E159: -0.1576761042 | F159: 0.0006808362638
B160: 1.43 | C160: 9.706166775 | D160: 17.86454087 | E160: -0.1552080842 | F160: -0.004954322569
B161: 1.44 | C161: 9.553497685 | D161: 17.85404248 | E161: -0.1526690907 | F161: -0.01049839131
B162: 1.45 | C162: 9.403430531 | D162: 17.83809874 | E162: -0.1500671534 | F162: -0.01594374262
B163: 1.46 | C163: 9.256020497 | D163: 17.81681541 | E163: -0.147410034 | F163: -0.02128333018
B164: 1.47 | C164: 9.11131529 | D164: 17.79030472 | E164: -0.1447052073 | F164: -0.02651069094
B165: 1.48 | C165: 8.969355445 | D165: 17.75868478 | E165: -0.141959845 | F165: -0.03161994359
B166: 1.49 | C166: 8.830174642 | D166: 17.72207899 | E166: -0.1391808031 | F166: -0.03660578354
B167: 1.5 | C167: 8.69380003 | D167: 17.68061552 | E167: -0.1363746122 | F167: -0.04146347481
B168: 1.51 | C168: 8.560252559 | D168: 17.63442668 | E168: -0.1335474708 | F168: -0.04618883893
B169: 1.52 | C169: 8.429547318 | D169: 17.58364844 | E169: -0.130705241 | F169: -0.05077824138
B170: 1.53 | C170: 8.301693871 | D170: 17.52841986 | E170: -0.1278534467 | F170: -0.0552285757
B171: 1.54 | C171: 8.176696597 | D171: 17.46888262 | E171: -0.124997274 | F171: -0.05953724576
B172: 1.55 | C172: 8.054555023 | D172: 17.40518047 | E172: -0.1221415741 | F172: -0.06370214624
B173: 1.56 | C173: 7.935264156 | D173: 17.33745883 | E173: -0.1192908671 | F173: -0.06772164184
B174: 1.57 | C174: 7.818814808 | D174: 17.26586428 | E174: -0.1164493481 | F174: -0.07159454538
B175: 1.58 | C175: 7.705193913 | D175: 17.19054419 | E175: -0.1136208945 | F175: -0.07532009501
B176: 1.59 | C176: 7.594384839 | D176: 17.11164626 | E176: -0.1108090746 | F176: -0.07889793087
B177: 1.6 | C177: 7.486367682 | D177: 17.02931818 | E177: -0.108017157 | F177: -0.08232807134
B178: =B177+$D$13 -> 1.61 | C178: 7.381119561 | D178: 16.9437073 | E178: -0.105248121 | F178: -0.0856108891
B179: 1.62 | C179: 7.278614893 | D179: 16.85496021 | E179: -0.1025046675 | F179: -0.08874708721
B180: 1.63 | C180: 7.178825662 | D180: 16.76322253 | E180: -0.09978923093 | F180: -0.09173767538
B181: 1.64 | C181: 7.081721671 | D181: 16.66863859 | E181: -0.09710399096 | F181: -0.09458394646
B182: 1.65 | C182: 6.987270786 | D182: 16.57135113 | E182: -0.0944508848 | F182: -0.09728745351
B183: 1.66 | C183: 6.895439167 | D183: 16.47150115 | E183: -0.0918316196 | F183: -0.09984998733
B184: 1.67 | C184: 6.806191482 | D184: 16.36922759 | E184: -0.08924768494 | F184: -0.1022735546
B185: 1.68 | C185: 6.719491117 | D185: 16.26466723 | E185: -0.08670036516 | F185: -0.104560357
B186: 1.69 | C186: 6.635300365 | D186: 16.15795446 | E186: -0.08419075166 | F186: -0.1067127707
B187: 1.7 | C187: 6.55358061 | D187: 16.04922114 | E187: -0.081719755 | F187: -0.108733327
B188: 1.71 | C188: 6.474292493 | D188: 15.93859644 | E188: -0.07928811669 | F188: -0.1106246938
B189: 1.72 | C189: 6.397396073 | D189: 15.82620678 | E189: -0.07689642074 | F189: -0.1123896582
B190: 1.73 | C190: 6.322850968 | D190: 15.71217568 | E190: -0.0745451048 | F190: -0.1140311094
B191: 1.74 | C191: 6.250616497 | D191: 15.59662365 | E191: -0.07223447099 | F191: -0.1155520232
B192: 1.75 | C192: 6.180651801 | D192: 15.47966821 | E192: -0.06996469625 | F192: -0.1169554468
B193: 1.76 | C193: 6.112915958 | D193: 15.36142372 | E193: -0.06773584232 | F193: -0.1182444858
B194: 1.77 | C194: 6.047368093 | D194: 15.24200143 | E194: -0.06554786523 | F194: -0.11942229
B195: 1.78 | C195: 5.983967469 | D195: 15.12150939 | E195: -0.06340062438 | F195: -0.1204920423
B196: 1.79 | C196: 5.922673578 | D196: 15.00005244 | E196: -0.06129389112 | F196: -0.1214569472
B197: 1.8 | C197: 5.863446221 | D197: 14.87773222 | E197: -0.05922735694 | F197: -0.1223202203
B198: 1.81 | C198: 5.80624558 | D198: 14.75464714 | E198: -0.05720064109 | F198: -0.1230850789
B199: 1.82 | C199: 5.751032282 | D199: 14.63089241 | E199: -0.05521329788 | F199: -0.1237547333
B200: 1.83 | C200: =C199+E200 -> 5.697767458 | D200: =D199+F200 -> 14.50656003 | E200: =($D$9*C199-$D$10*C199*D199)*$D$13 -> -0.05326482345 | F200: =($D$11*C199*D199-$D$12*D199)*$D$13 -> -0.1243323791
B201: 1.84 | C201: 5.646412796 | D201: 14.38173884 | E201: -0.05135466215 | F201: -0.1248211892
B202: 1.85 | C202: 5.596930584 | D202: 14.25651453 | E202: -0.0494822125 | F202: -0.1252243084
B203: 1.86 | C203: 5.549283751 | D203: 14.13096968 | E203: -0.04764683271 | F203: -0.1255448462
B204: 1.87 | C204: 5.503435905 | D204: 14.00518381 | E204: -0.04584784589 | F204: -0.1257858728
B205: 1.88 | C205: 5.45935136 | D205: 13.8792334 | E205: -0.04408454479 | F205: -0.1259504133
B206: 1.89 | C206: 5.416995164 | D206: 13.75319195 | E206: -0.04235619626 | F206: -0.1260414445
B207: 1.9 | C207: 5.376333119 | D207: 13.62713006 | E207: -0.04066204532 | F207: -0.1260618905
B208: 1.91 | C208: 5.3373318 | D208: 13.50111544 | E208: -0.03900131897 | F208: -0.1260146199
... 561 more rows

Sheet Лист3
B2: 0.0001
C4: Nmax= | D4: 400
C5: N0= | D5: 20
C6: k= | D6: 0.2
C7: dt= | D7: 1
C9: t | D9: N | F9: t | G9: N | H9: dN
C10: 0 | D10: =$D$4-($D$4-$D$5)*EXP(-$D$6*C10) -> 20 | F10: 0 | G10: =D5 -> 20
C11: =C10+$D$7 -> 1 | D11: =$D$4-($D$4-$D$5)*EXP(-$D$6*C11) -> 88.88231383 | F11: =F10+$D$7 -> 1 | G11: =G10+H11 -> 96 | H11: =$D$6*($D$4-G10)*$D$7 -> 76
C12: =C11+$D$7 -> 2 | D12: 145.2783825 | F12: =F11+$D$7 -> 2 | G12: =G11+H12 -> 156.8 | H12: =$D$6*($D$4-G11)*$D$7 -> 60.8
C13: 3 | D13: 191.4515783 | F13: 3 | G13: 205.44 | H13: 48.64
C14: 4 | D14: 229.2549936 | F14: 4 | G14: 244.352 | H14: 38.912
C15: 5 | D15: 260.2058124 | F15: 5 | G15: 275.4816 | H15: 31.1296
C16: 6 | D16: 285.5461995 | F16: 6 | G16: 300.38528 | H16: 24.90368
C17: 7 | D17: 306.2931537 | F17: 7 | G17: 320.308224 | H17: 19.922944
C18: 8 | D18: 323.2793232 | F18: 8 | G18: 336.2465792 | H18: 15.9383552
C19: 9 | D19: 337.1864225 | F19: 9 | G19: 348.9972634 | H19: 12.75068416
C20: 10 | D20: 348.5725924 | F20: 10 | G20: 359.1978107 | H20: 10.20054733
C21: 11 | D21: 357.8947998 | F21: 11 | G21: 367.3582486 | H21: 8.160437862
C22: 12 | D22: 365.5271778 | F22: 12 | G22: 373.8865988 | H22: 6.52835029
C23: 13 | D23: 371.7760403 | F23: 13 | G23: 379.1092791 | H23: 5.222680232
C24: 14 | D24: 376.8921762 | F24: 14 | G24: 383.2874233 | H24: 4.178144186
C25: 15 | D25: 381.080914 | F25: 15 | G25: 386.6299386 | H25: 3.342515348
C26: 16 | D26: 384.5103625 | F26: 16 | G26: 389.3039509 | H26: 2.674012279
C27: 17 | D27: 387.3181574 | F27: 17 | G27: 391.4431607 | H27: 2.139209823
C28: 18 | D28: 389.6169855 | F28: 18 | G28: 393.1545286 | H28: 1.711367858
F41: 0.5 | G41: 49 | H41: 0.1 | I41: 17.8
F42: 1 | G42: 84.1 | H42: 0.2 | I42: 25.444
F43: 1.5 | G43: 115.69 | H43: 0.3 | I43: 32.93512
F44: 2 | G44: 144.121 | H44: 0.4 | I44: 40.2764176
F45: 2.5 | G45: 169.7089 | H45: 0.5 | I45: 47.47088925
F46: 3 | G46: 192.73801 | H46: 0.6 | I46: 54.52147146
F47: 3.5 | G47: 213.464209 | H47: 0.7 | I47: 61.43104203
F48: 4 | G48: 232.1177881 | H48: 0.8 | I48: 68.20242119
F49: 4.5 | G49: 248.9060093 | H49: 0.9 | I49: 74.83837277
F50: 5 | G50: 264.0154084 | H50: 1 | I50: 81.34160531
F51: 5.5 | G51: 277.6138675 | H51: 1.1 | I51: 87.71477321
F52: 6 | G52: 289.8524808 | H52: 1.2 | I52: 93.96047774
F53: 6.5 | G53: 300.8672327 | H53: 1.3 | I53: 100.0812682
F54: 7 | G54: 310.7805094 | H54: 1.4 | I54: 106.0796428
F55: 7.5 | G55: 319.7024585 | H55: 1.5 | I55: 111.95805
F56: 8 | G56: 327.7322126 | H56: 1.6 | I56: 117.718889
F57: 8.5 | G57: 334.9589914 | H57: 1.7 | I57: 123.3645112
F58: 9 | G58: 341.4630922 | H58: 1.8 | I58: 128.897221
F59: 9.5 | G59: 347.316783 | H59: 1.9 | I59: 134.3192765
F60: 10 | G60: 352.5851047 | H60: 2 | I60: 139.632891
F61: 10.5 | G61: 357.3265942 | H61: 2.1 | I61: 144.8402332
F62: 11 | G62: 361.5939348 | H62: 2.2 | I62: 149.9434285
F63: 11.5 | G63: 365.4345413 | H63: 2.3 | I63: 154.94456
F64: 12 | G64: 368.8910872 | H64: 2.4 | I64: 159.8456688
F65: 12.5 | G65: 372.0019785 | H65: 2.5 | I65: 164.6487554
F66: 13 | G66: 374.8017806 | H66: 2.6 | I66: 169.3557803
F67: 13.5 | G67: 377.3216026 | H67: 2.7 | I67: 173.9686647
F68: 14 | G68: 379.5894423 | H68: 2.8 | I68: 178.4892914
F69: 14.5 | G69: 381.6304981 | H69: 2.9 | I69: 182.9195056
F70: 15 | G70: 383.4674483 | H70: 3 | I70: 187.2611154
F71: 15.5 | G71: 385.1207034 | H71: 3.1 | I71: 191.5158931
F72: 16 | G72: 386.6086331 | H72: 3.2 | I72: 195.6855753
F73: 16.5 | G73: 387.9477698 | H73: 3.3 | I73: 199.7718638
F74: 17 | G74: 389.1529928 | H74: 3.4 | I74: 203.7764265
F75: 17.5 | G75: 390.2376935 | H75: 3.5 | I75: 207.700898
F76: 18 | G76: 391.2139242 | H76: 3.6 | I76: 211.54688
F77: 18.5 | G77: 392.0925318 | H77: 3.7 | I77: 215.3159424
F78: 19 | G78: 392.8832786 | H78: 3.8 | I78: 219.0096236
F79: 19.5 | G79: 393.5949507 | H79: 3.9 | I79: 222.6294311
F80: 20 | G80: 394.2354557 | H80: 4 | I80: 226.1768425
H81: 4.1 | I81: 229.6533056
H82: 4.2 | I82: 233.0602395
H83: 4.3 | I83: 236.3990347
H84: 4.4 | I84: 239.671054
H85: 4.5 | I85: 242.8776329
H86: 4.6 | I86: 246.0200803
H87: 4.7 | I87: 249.0996787
H88: 4.8 | I88: 252.1176851
H89: 4.9 | I89: 255.0753314
H90: 5 | I90: 257.9738248
H91: 5.1 | I91: 260.8143483
H92: 5.2 | I92: 263.5980613
H93: 5.3 | I93: 266.3261001
H94: 5.4 | I94: 268.9995781
H95: 5.5 | I95: 271.6195865
H96: 5.6 | I96: 274.1871948
H97: 5.7 | I97: 276.7034509
H98: 5.8 | I98: 279.1693819
H99: 5.9 | I99: 281.5859942
H100: 6 | I100: 283.9542744
H101: 6.1 | I101: 286.2751889
H102: 6.2 | I102: 288.5496851
H103: 6.3 | I103: 290.7786914
H104: 6.4 | I104: 292.9631176
H105: 6.5 | I105: 295.1038552
H106: 6.6 | I106: 297.2017781
H107: 6.7 | I107: 299.2577425
H108: 6.8 | I108: 301.2725877
H109: 6.9 | I109: 303.2471359
H110: 7 | I110: 305.1821932
H111: 7.1 | I111: 307.0785494
H112: 7.2 | I112: 308.9369784
H113: 7.3 | I113: 310.7582388
H114: 7.4 | I114: 312.543074
H115: 7.5 | I115: 314.2922125
H116: 7.6 | I116: 316.0063683
H117: 7.7 | I117: 317.6862409
H118: 7.8 | I118: 319.3325161
H119: 7.9 | I119: 320.9458658
H120: 8 | I120: 322.5269485
H121: 8.1 | I121: 324.0764095
H122: 8.2 | I122: 325.5948813
H123: 8.3 | I123: 327.0829837
H124: 8.4 | I124: 328.541324
H125: 8.5 | I125: 329.9704975
H126: 8.6 | I126: 331.3710876
H127: 8.7 | I127: 332.7436658
H128: 8.8 | I128: 334.0887925
H129: 8.9 | I129: 335.4070167
H130: 9 | I130: 336.6988763
H131: 9.1 | I131: 337.9648988
H132: 9.2 | I132: 339.2056008
H133: 9.3 | I133: 340.4214888
H134: 9.4 | I134: 341.613059
H135: 9.5 | I135: 342.7807979
H136: 9.6 | I136: 343.9251819
H137: 9.7 | I137: 345.0466783
H138: 9.8 | I138: 346.1457447
H139: 9.9 | I139: 347.2228298
H140: 10 | I140: 348.2783732
H141: 10.1 | I141: 349.3128057
H142: 10.2 | I142: 350.3265496
H143: 10.3 | I143: 351.3200186
H144: 10.4 | I144: 352.2936183
H145: 10.5 | I145: 353.2477459
H146: 10.6 | I146: 354.182791
H147: 10.7 | I147: 355.0991352
H148: 10.8 | I148: 355.9971525
H149: 10.9 | I149: 356.8772094
H150: 11 | I150: 357.7396652
H151: 11.1 | I151: 358.5848719
H152: 11.2 | I152: 359.4131745
H153: 11.3 | I153: 360.224911
H154: 11.4 | I154: 361.0204128
H155: 11.5 | I155: 361.8000045
H156: 11.6 | I156: 362.5640044
H157: 11.7 | I157: 363.3127243
H158: 11.8 | I158: 364.0464698
H159: 11.9 | I159: 364.7655404
H160: 12 | I160: 365.4702296
H161: 12.1 | I161: 366.160825
H162: 12.2 | I162: 366.8376085
H163: 12.3 | I163: 367.5008564
H164: 12.4 | I164: 368.1508392
H165: 12.5 | I165: 368.7878225
H166: 12.6 | I166: 369.412066
H167: 12.7 | I167: 370.0238247
H168: 12.8 | I168: 370.6233482
H169: 12.9 | I169: 371.2108812
H170: 13 | I170: 371.7866636
H171: 13.1 | I171: 372.3509303
H172: 13.2 | I172: 372.9039117
H173: 13.3 | I173: 373.4458335
H174: 13.4 | I174: 373.9769168
H175: 13.5 | I175: 374.4973785
H176: 13.6 | I176: 375.0074309
H177: 13.7 | I177: 375.5072823
H178: 13.8 | I178: 375.9971367
H179: 13.9 | I179: 376.4771939
H180: 14 | I180: 376.94765
H181: 14.1 | I181: 377.408697
H182: 14.2 | I182: 377.8605231
H183: 14.3 | I183: 378.3033126
H184: 14.4 | I184: 378.7372464
H185: 14.5 | I185: 379.1625015
H186: 14.6 | I186: 379.5792514
H187: 14.7 | I187: 379.9876664
H188: 14.8 | I188: 380.3879131
H189: 14.9 | I189: 380.7801548
H190: 15 | I190: 381.1645517
H191: 15.1 | I191: 381.5412607
H192: 15.2 | I192: 381.9104355
H193: 15.3 | I193: 382.2722268
H194: 15.4 | I194: 382.6267822
H195: 15.5 | I195: 382.9742466
H196: 15.6 | I196: 383.3147616
H197: 15.7 | I197: 383.6484664
H198: 15.8 | I198: 383.9754971
H199: 15.9 | I199: 384.2959871
H200: 16 | I200: 384.6100674
H201: 16.1 | I201: 384.9178661
H202: 16.2 | I202: 385.2195087
H203: 16.3 | I203: 385.5151186
H204: 16.4 | I204: 385.8048162
H205: 16.5 | I205: 386.0887199
H206: 16.6 | I206: 386.3669455
H207: 16.7 | I207: 386.6396066
H208: 16.8 | I208: 386.9068144
H209: 16.9 | I209: 387.1686781
H210: 17 | I210: 387.4253046
H211: 17.1 | I211: 387.6767985
H212: 17.2 | I212: 387.9232625
H213: 17.3 | I213: 388.1647973
H214: 17.4 | I214: 388.4015013
H215: 17.5 | I215: 388.6334713
... 25 more rows

Sheet Лист4
C2: dN1/dt=k1*N1-k2*N1*N2
C3: dN2/dt=k3*N1*N2-k4*N2
B8: N10= | C8: 10
B9: N20= | C9: 5
B10: k1= | C10: 2
B11: k2= | C11: 0.2
B12: k3= | C12: 0.2
B13: k4= | C13: 2
B14: dt= | C14: 0.05
C17: t | D17: N1 | E17: N2 | F17: dN1 | G17: dN2
C18: 0 | D18: =C8 -> 10 | E18: =C9 -> 5
C19: =C18+$C$14 -> 0.05 | D19: =D18+F19 -> 10.5 | E19: =E18+G19 -> 5 | F19: =($C$10*D18-$C$11*D18*E18)*$C$14 -> 0.5 | G19: =($C$12*D18*E18-$C$13*E18)*$C$14 -> 0
C20: =C19+$C$14 -> 0.1 | D20: =D19+F20 -> 11.025 | E20: =E19+G20 -> 5.025 | F20: =($C$10*D19-$C$11*D19*E19)*$C$14 -> 0.525 | G20: =($C$12*D19*E19-$C$13*E19)*$C$14 -> 0.025
C21: 0.15 | D21: 11.57349375 | E21: 5.07650625 | F21: 0.54849375 | G21: 0.05150625
C22: 0.2 | D22: 12.14331399 | E22: 5.156384759 | F22: 0.5698202414 | G22: 0.07987850856
C23: 0.25 | D23: 12.7314894 | E23: 5.266902275 | F23: 0.5881754073 | G23: 0.110517516
C24: 0.3 | D24: 13.33408323 | E24: 5.410767152 | F24: 0.6025938351 | G24: 0.1438648773
C25: 0.35 | D25: 13.94601536 | E25: 5.591166632 | F25: 0.6119321278 | G25: 0.1803994804
C26: 0.4 | D26: 14.56087194 | E26: 5.811794926 | F26: 0.6148565787 | G26: 0.2206282942
C27: 0.45 | D27: 15.17071112 | E27: 6.07686345 | F27: 0.6098391774 | G27: 0.265068524
C28: 0.5 | D28: 15.76587883 | E28: 6.391080505 | F28: 0.5951677127 | G28: 0.314217054
C29: 0.55 | D29: 16.33485671 | E29: 6.759582462 | F29: 0.5689778747 | G29: 0.3685019578
C30: 0.6 | D30: 16.86417427 | E30: 7.187792325 | F30: 0.5293175614 | G30: 0.4282098629
C31: 0.65 | D31: 17.33842987 | E31: 7.681174916 | F31: 0.474255603 | G31: 0.4933825911
C32: 0.7 | D32: 17.74047773 | E32: 8.244852551 | F32: 0.4020478609 | G32: 0.5636776344
C33: 0.75 | D33: 18.05184927 | E33: 8.883043526 | F33: 0.3113715424 | G33: 0.6381909756
C34: =C33+$C$14 -> 0.8 | D34: =D33+F34 -> 18.25348057 | E34: =E33+G34 -> 9.598292802 | F34: =($C$10*D33-$C$11*D33*E33)*$C$14 -> 0.2016312991 | G34: =($C$12*D33*E33-$C$13*E33)*$C$14 -> 0.7152492756
C35: 0.85 | D35: 18.32680612 | E35: 10.39048603 | F35: 0.07332554535 | G35: 0.7921932317
C36: 0.9 | D36: 18.2552425 | E36: 11.25568166 | F36: -0.0715636183 | G36: 0.8651956267
C37: 0.95 | D37: 18.02601477 | E37: 12.18486548 | F37: -0.2292277321 | G37: 0.929183816
C38: 1 | D38: 17.63217059 | E38: 13.16282458 | F38: -0.3938441734 | G38: 0.9779591025
C39: 1.05 | D39: 17.07449597 | E39: 14.16743381 | F39: -0.5576746253 | G39: 1.004609227
C40: 1.1 | D40: 16.36292765 | E40: 15.16970834 | F40: -0.7115683171 | G40: 1.002274533
C41: 1.15 | D41: 15.51701202 | E41: 16.13494591 | F41: -0.8459156353 | G41: 0.9652375665
C42: 1.2 | D42: 14.56505172 | E42: 17.02511281 | F42: -0.9519602933 | G42: 0.8901669044
C43: 1.25 | D43: 13.54184041 | E43: 17.80231802 | F43: -1.023211314 | G43: 0.7772052056
C44: 1.3 | D44: 12.48526295 | E44: 18.43284771 | F44: -1.056577454 | G44: 0.6305296931
C45: 1.35 | D45: 11.43239974 | E45: 18.89095244 | F45: -1.052863211 | G45: 0.4581047356
C46: 1.4 | D46: 10.41595052 | E46: 19.1615464 | F46: -1.016449224 | G46: 0.2705939544
C47: 1.45 | D47: 9.46168838 | E47: 19.24124895 | F47: -0.9542621396 | G47: 0.07970255172
C48: 1.5 | D48: 8.587310201 | E48: 19.13767107 | F48: -0.874378178 | G48: -0.103577879
C49: 1.55 | D49: 7.802630041 | E49: 18.86731514 | F49: -0.7846801601 | G49: -0.2703559269
C50: 1.6 | D50: 7.110746246 | E50: 18.45273043 | F50: -0.6918837953 | G50: -0.414584715
C51: 1.65 | D51: 6.509694034 | E51: 17.91958422 | F51: -0.6010522117 | G51: -0.5331462066
C52: 1.7 | D52: 5.994153333 | E52: 17.29413591 | F52: -0.5155407017 | G52: -0.6254483171
C53: 1.75 | D53: 5.556931642 | E53: 16.60135934 | F53: -0.4372216905 | G53: -0.6927765668
C54: 1.8 | D54: 5.190098616 | E54: 15.86374959 | F54: -0.3668330259 | G54: -0.7376097437
C55: 1.85 | D55: 4.88576423 | E55: 15.10071888 | F55: -0.3043343866 | G55: -0.7630307113
C56: 1.9 | D56: 4.636555131 | E56: 14.32843252 | F56: -0.2492090987 | G56: -0.7722863667
C57: 1.95 | D57: 4.435864971 | E57: 13.55993494 | F57: -0.20069016 | G57: -0.7684975786
C58: 2 | D58: 4.277951064 | E58: 12.80544185 | F58: -0.1579139069 | G58: -0.7544930898
C59: 2.05 | D59: 4.157935635 | E59: 12.0727082 | F59: -0.1200154294 | G59: -0.732733649
C60: 2.1 | D60: 4.071753762 | E60: 11.36741282 | F60: -0.08618187283 | G60: -0.7052953836
C61: 2.15 | D61: 4.016076079 | E61: 10.69352459 | F61: -0.05567768277 | G61: -0.6738882226
C62: 2.2 | D62: 3.988223604 | E62: 10.05363222 | F62: -0.02785247529 | G62: -0.6398923761
C63: 2.25 | D63: 3.986084631 | E63: 9.449230329 | F63: -0.002138972743 | G63: -0.6044018886
C64: 2.3 | D64: 4.008038776 | E64: 8.880961614 | F64: 0.02195414523 | G64: -0.568268715
C65: 2.35 | D65: 4.052890269 | E65: 8.348817837 | F65: 0.04485149245 | G65: -0.5321437762
C66: 2.4 | D66: 4.11981087 | E66: 7.852304479 | F66: 0.06692060119 | G66: -0.496513358
C67: 2.45 | D67: 4.208291864 | E67: 7.390574125 | F67: 0.08848099351 | G67: -0.4617303544
C68: 2.5 | D68: 4.31810412 | E68: 6.962533642 | F68: 0.1098122568 | G68: -0.4280404829
C69: 2.55 | D69: 4.44926508 | E69: 6.56692973 | F69: 0.13116096 | G69: -0.3956039121
C70: 2.6 | D70: 4.602011477 | E70: 6.202416868 | F70: 0.1527463967 | G70: -0.3645128617
C71: 2.65 | D71: 4.776776689 | E71: 5.867611118 | F71: 0.1747652116 | G71: -0.3348057507
C72: 2.7 | D72: 4.974171677 | E72: 5.561132686 | F72: 0.1973949888 | G72: -0.3064784317
C73: 2.75 | D73: 5.194968558 | E73: 5.281639704 | F73: 0.2207968807 | G73: -0.2794929816
C74: 2.8 | D74: 5.440085892 | E74: 5.027855256 | F74: 0.2451173338 | G74: -0.2537844484
C75: 2.85 | D75: 5.710574837 | E75: 4.798589375 | F75: 0.2704889448 | G75: -0.2292658811
C76: 2.9 | D76: 6.007605283 | E76: 4.592757475 | F76: 0.2970304463 | G76: -0.2058319001
C77: 2.95 | D77: 6.332451071 | E77: 4.409396468 | F77: 0.3248457876 | G77: -0.1833610068
C78: 3 | D78: 6.686473304 | E78: 4.247679695 | F78: 0.3540222332 | G78: -0.1617167729
C79: 3.05 | D79: 7.071100665 | E79: 4.106931694 | F79: 0.3846273616 | G79: -0.1407480007
C80: 3.1 | D80: 7.487805458 | E80: 3.986643799 | F80: 0.4167047922 | G80: -0.1202878951
C81: 3.15 | D81: 7.938073871 | E81: 3.886491551 | F81: 0.4502684138 | G81: -0.1001522479
C82: 3.2 | D82: 8.423368688 | E82: 3.806354966 | F82: 0.4852948168 | G82: -0.08013658478
C83: 3.25 | D83: 8.945082245 | E83: 3.746342782 | F83: 0.5217135564 | G83: -0.06001218424
C84: 3.3 | D84: 9.504477026 | E84: 3.706821947 | F84: 0.5593947814 | G84: -0.03952083518
C85: 3.35 | D85: 10.10261069 | E85: 3.688453793 | F85: 0.5981336623 | G85: -0.01836815435
C86: 3.4 | D86: 10.74024163 | E86: 3.69223854 | F86: 0.6376309418 | G86: 0.003784747828
C87: 3.45 | D87: 11.41771045 | E87: 3.719570027 | F87: 0.6774688222 | G87: 0.02733148676
C88: 3.5 | D88: 12.13479176 | E88: 3.77230276 | F88: 0.7170813095 | G88: 0.05273273306
C89: 3.55 | D89: 12.89050985 | E89: 3.852833569 | F89: 0.7557180916 | G89: 0.08053080856
C90: 3.6 | D90: 13.68291095 | E90: 3.964200103 | F90: 0.7924010945 | G90: 0.1113665339
C91: 3.65 | D91: 14.50878407 | E91: 4.110198062 | F91: 0.8258731249 | G91: 0.1459979596
C92: 3.7 | D92: 15.36332272 | E92: 4.295518018 | F92: 0.8545386455 | G92: 0.1853199556
C93: 3.75 | D93: 16.23972069 | E93: 4.525900512 | F93: 0.8763979763 | G93: 0.2303824937
C94: 3.8 | D94: 17.12869916 | E94: 4.808304063 | F94: 0.8889784675 | G94: 0.2824035508
C95: 3.85 | D95: 18.01796914 | E95: 5.151073594 | F95: 0.8892699785 | G95: 0.3427695314
C96: 3.9 | D96: 18.8916472 | E96: 5.564085085 | F96: 0.8736780635 | G96: 0.4130114912
C97: 3.95 | D97: 19.7296646 | E97: 6.058823901 | F97: 0.838017396 | G97: 0.4947388159
C98: =C97+$C$14 -> 4 | D98: =D97+F98 -> 20.50724543 | E98: =E97+G98 -> 6.648327145 | F98: =($C$10*D97-$C$11*D97*E97)*$C$14 -> 0.7775808256 | G98: =($C$12*D97*E97-$C$13*E97)*$C$14 -> 0.5895032443
C99: 4.05 | D99: 21.1945812 | E99: 7.346883195 | F99: 0.6873357782 | G99: 0.6985560499
C100: 4.1 | D100: 21.7568982 | E100: 8.169336 | F100: 0.5623169956 | G100: 0.8224528052
C101: 4.15 | D101: 22.1551939 | E101: 9.129796518 | F101: 0.3982957028 | G101: 0.9604605171
C102: 4.2 | D102: 22.34798917 | E102: 10.23954099 | F102: 0.1927952689 | G102: 1.10974447
C103: 4.25 | D103: 22.29445658 | E103: 11.5039184 | F103: -0.05353259387 | G103: 1.264377412
C104: 4.3 | D104: 21.95916614 | E104: 12.91826265 | F104: -0.3352904345 | G104: 1.414344252
C105: 4.35 | D105: 21.31834 | E105: 14.46317915 | F105: -0.6408261442 | G105: 1.544916493
C106: 4.4 | D106: 20.36686429 | E106: 16.10017094 | F106: -0.9514757049 | G106: 1.63699179
C107: 4.45 | D107: 19.12445076 | E107: 17.76925381 | F107: -1.242413536 | G107: 1.669082872
C108: 4.5 | D108: 17.63862364 | E108: 19.39060062 | F108: -1.485827119 | G108: 1.621346814
C109: 4.55 | D109: 15.98225094 | E109: 20.87177562 | F109: -1.656372701 | G109: 1.481175003
C110: 4.6 | D110: 14.24469648 | E110: 22.12037762 | F110: -1.737554462 | G110: 1.248601993
C111: 4.65 | D111: 12.51818547 | E111: 23.05932051 | F111: -1.726511003 | G111: 0.9389428893
C112: 4.7 | D112: 10.88339551 | E112: 23.63999697 | F112: -1.634789962 | G112: 0.5806764592
C113: 4.75 | D113: 9.398900693 | E113: 23.84883164 | F113: -1.484494817 | G113: 0.2088346719
C114: 4.8 | D114: 8.097262761 | E114: 23.70547648 | F114: -1.301637933 | G114: -0.1433551616
C115: 4.85 | D115: 6.987494318 | E115: 23.25442355 | F115: -1.109768443 | G115: -0.4510529287
C116: 4.9 | D116: 6.061342226 | E116: 22.55388272 | F116: -0.9261520922 | G116: -0.7005408307
C117: 4.95 | D117: 5.300408432 | E117: 21.66556246 | F117: -0.760933794 | G117: -0.888320255
C118: 5 | D118: 4.682085975 | E118: 20.64736951 | F118: -0.6183224563 | G118: -1.018192947
C119: 5.05 | D119: 4.183566981 | E119: 19.54936016 | F119: -0.4985189948 | G119: -1.098009359
C120: 5.1 | D120: 3.784063102 | E120: 18.41228472 | F120: -0.3995038783 | G120: -1.137075439
C121: 5.15 | D121: 3.46573694 | E121: 17.26778872 | F121: -0.318326162 | G121: -1.144495999
C122: 5.2 | D122: 3.213854502 | E122: 16.13946598 | F122: -0.2518824383 | G122: -1.128322739
C123: 5.25 | D123: 3.016540998 | E123: 15.04421833 | F123: -0.1973135037 | G123: -1.095247644
C124: 5.3 | D124: 2.864380084 | E124: 13.99361151 | F124: -0.1521609141 | G124: -1.050606819
C125: 5.35 | D125: 2.749987871 | E125: 12.99508058 | F125: -0.1143922128 | G125: -0.9985309301
C126: 5.4 | D126: 2.667623519 | E126: 12.05293567 | F126: -0.08236435279 | G126: -0.9421449185
C127: 5.45 | D127: 2.612858924 | E127: 11.16916905 | F127: -0.05476459463 | G127: -0.8837666201
C128: 5.5 | D128: 2.582310186 | E128: 10.34408677 | F128: -0.03054873774 | G128: -0.8250822744
C129: 5.55 | D129: 2.573424798 | E129: 9.5767945 | F129: -0.008885387736 | G129: -0.7672922707
C130: 5.6 | D130: 2.584315674 | E130: 8.865566655 | F130: 0.01089087528 | G130: -0.7112278455
C131: 5.65 | D131: 2.613633012 | E131: 8.208124218 | F131: 0.02931733875 | G131: -0.6574424369
C132: 5.7 | D132: 2.660466069 | E132: 7.60184204 | F132: 0.04683305698 | G132: -0.6062821775
C133: 5.75 | D133: 2.724268248 | E133: 7.043902264 | F133: 0.06380217881 | G133: -0.5579397759
C134: 5.8 | D134: 2.80480028 | E134: 6.531406831 | F134: 0.080532032 | G134: -0.5124954336
C135: 5.85 | D135: 2.902087391 | E135: 6.061459065 | F135: 0.09728711093 | G135: -0.469947766
C136: 5.9 | D136: 3.016387291 | E136: 5.631221998 | F136: 0.1142998999 | G136: -0.4302370672
C137: 5.95 | D137: 3.148166555 | E137: 5.237959263 | F137: 0.1317792644 | G137: -0.3932627351
C138: 6 | D138: 3.298083529 | E138: 4.879063018 | F138: 0.1499169739 | G138: -0.3588962446
C139: 6.05 | D139: 3.466976308 | E139: 4.55207229 | F139: 0.1688927792 | G139: -0.326990728
C140: 6.1 | D140: 3.655854671 | E140: 4.254684329 | F140: 0.188878363 | G140: -0.2973879612
C141: 6.15 | D141: 3.865895063 | E141: 3.984760972 | F141: 0.2100403914 | G141: -0.2699233571
C142: 6.2 | D142: 4.098437891 | E142: 3.740331552 | F142: 0.2325428286 | G142: -0.2444294195
C143: 6.25 | D143: 4.354986515 | E143: 3.519593563 | F143: 0.2565486235 | G143: -0.2207379896
C144: 6.3 | D144: 4.637207341 | E144: 3.320912031 | F144: 0.2822208265 | G144: -0.1986815312
C145: 6.35 | D145: 4.946930499 | E145: 3.142818405 | F145: 0.3097231576 | G145: -0.1780936266
C146: 6.4 | D146: 5.286150507 | E146: 2.984009606 | F146: 0.3392200077 | G146: -0.1588087983
C147: 6.45 | D147: 5.657026319 | E147: 2.843347885 | F147: 0.3708758117 | G147: -0.1406617217
C148: 6.5 | D148: 6.061880012 | E148: 2.719862034 | F148: 0.4048536937 | G148: -0.1234858503
C149: 6.55 | D149: 6.50319324 | E149: 2.612750604 | F149: 0.4413132282 | G149: -0.1071114304
C150: 6.6 | D150: 6.983600344 | E150: 2.521387764 | F150: 0.4804071034 | G150: -0.09136283973

Sheet Лист5
D5: N10= | E5: 10
D6: N20= | E6: 5
D7: k1= | E7: 2
D8: k2= | E8: 0.2
D9: k3= | E9: 0.2
D10: k4= | E10: 2
D11: dt= | E11: 0.05
